{"text_format":"3","workbook":"xlsx","n_sheets":2,"sheets":["PRICING SCHEDULE","Sheet1"],"not_rendered":{"images":1,"defined_names":2},"read":"whole","date_system":"1900"}

{"sheet":"PRICING SCHEDULE","index":0,"n_rows":24,"n_cols":15,"rows_kept":24,"merged":[[10,3,10,5],[20,1,23,1],[20,3,20,4],[22,3,22,4],[23,3,23,4]]}
[null,"SUPPLY CHAIN MANAGEMENT"]
[null,"Pricing schedule"]
["RFx No","RFB 2813/2023"]
["RFx Title","RBF to appoint a supplier(S) to procure, Install new water coolers and Maintenance of Water cooler  at SITA Gauteng buildings and Including ALL Regions for a period of three years (36 months)"]
["Bidder Name "]
[]
["1. INSTRUCTION FOR COMPLETING THE PRICING SCHEDULE"]
["(a)  Bidder must complete/enter YELLOW cells only"]
["(b)  Unit and Line prices must be VAT EXCLUSIVE and in South African Rand (ZAR) currency."]
["(c) The price must include all to deliver the goods or render the service, including all applicable taxes, logistics/delivery, storage, labour, subsistance and travel, installation cost,  all call out cost, repair/replacement cost and maintenance service cost."]
[{"$nulls":3},"Year 1",null,null,"Year 2",null,null,"Year 3",null,null,"TOTAL"]
["Item No","Media Monitoring Services ","Unit of measure","Qty ","Unit Price \n(Excl VAT)","Line Price Y1","Qty","Unit Price \n(Excl VAT)","Line Price Y2","Qty","Unit Price \n(Excl VAT)","Line Price Y3","Line Price Term \n(Excl VAT)","BRAND / MODEL","Price clarification comment"]
[1,"Once off Purchase of  new water coolers and installation cost","each",79,null,{"$f":"D13*E13","v":0},{"$nulls":6},{"$f":"F13","v":0}]
[2,"Quarterly Maintenance Service (incl.Pest control & repair/replacement cost)","each",79,null,{"$f":"D14*E14","v":0},79,null,{"$f":"G14*H14","v":0},79,null,{"$f":"J14*K14","v":0},{"$f":"SUM(F14,I14,L14)","v":0}]
[3,"Bi-annual replacement of filters","each",79,null,{"$f":"D15*E15","v":0},79,null,{"$f":"G15*H15","v":0},79,null,{"$f":"J15*K15","v":0},{"$f":"SUM(F15,I15,L15)","v":0}]
[null,"TOTAL BID PRICE  (EXCL VAT)",{"$nulls":3},{"$f":"SUBTOTAL(9,F13:F15)","v":0},null,null,{"$f":"SUBTOTAL(9,I14:I15)","v":0},null,null,{"$f":"SUBTOTAL(9,L14:L15)","v":0},{"$f":"SUBTOTAL(9,M13:M15)","v":0}]
[null,"VAT (@15%)",{"$nulls":3},{"$f":"F16*0.15","v":0},null,null,{"$f":"I16*0.15","v":0},null,null,{"$f":"L16*0.15","v":0},{"$f":"M16*0.15","v":0}]
[null,"TOTAL  BID PRICE (INCL VAT)",{"$nulls":3},{"$f":"F16+F17","v":0},null,null,{"$f":"I16+I17","v":0},null,null,{"$f":"L16+L17","v":0},{"$f":"M16+M17","v":0}]
[]
[]
[null,"I, the bidder, confirm that the price(s) and rate(s) quoted cover all the goods and/or works specified in the bidding documents; that the price(s) or rate(s) cover all my obligations and I accept that any mistakes regarding price(s), rate(s) or calculations will be at my own risk.\n[Note: First convert to PDF, then add signature]"]
[null,null,"Name","Capacity"]
[]
[null,null,"Signature (above)","Date"]

{"sheet":"Sheet1","index":1,"n_rows":0,"n_cols":0,"rows_kept":0}